[Event "Champions Showdown Kings Rapid 2019-E"]
[Site "Saint Louis"]
[Date "2019.02.21"]
[Round "5.5"]
[White "Rapport, Richard"]
[Black "Shankland, Samuel"]
[Result "1/2-1/2"]
[ECO "A46"]
[WhiteElo "2735"]
[BlackElo "2731"]
[Annotator "ChessBase"]
[PlyCount "146"]
[EventDate "2019.02.09"]
[EventType "match (rapid)"]
[EventCountry "USA"]
[SourceTitle "playchess.com"]
[Source "ChessBase"]
[SourceQuality "1"]
[TimeControl "900+10"]

1. d4 {[%emt 0:00:00]} Nf6 {[%emt 0:00:00]} 2. Nf3 {[%emt 0:00:00]} d5 {[%emt 0:00:00]} 3. c3 {[%emt 0:00:00]} e6 {[%emt 0:00:26]} 4. Bg5 {[%emt 0:00:00]} Be7 {[%emt 0:00:13]} 5. e3 {[%emt 0:00:03]} h6 {[%emt 0:00:06]} 6. Bf4 {[%emt 0:00:28]} Nbd7 {[%emt 0:00:21]} 7. Nbd2 {[%emt 0:00:13]} c5 {[%emt 0:01:01]} 8. h3 {[%emt 0:00:18]} b6 {[%emt 0:01:15]} 9. Bd3 {[%emt 0:00:08]} Bb7 {[%emt 0:00:03]} 10. Qb1 {[%emt 0:00:10]} Qc8 {[%emt 0:01:19]} 11. O-O {[%emt 0:02:03]} Ba6 {[%emt 0:00:22]} 12. a4 {[%emt 0:00:50]} O-O {[%emt 0:00:31]} 13. Bxa6 {[%emt 0:02:35]} Qxa6 {[%emt 0:00:01]} 14. b4 {[%emt 0:00:01]} cxb4 {[%emt 0:00:28]} 15. cxb4 {[%emt 0:00:02]} Rfc8 {[%emt 0:00:09]} 16. b5 {[%emt 0:00:21]} Qb7 {[%emt 0:00:17]} 17. Qb3 {[%emt 0:00:36]} a5 {[%emt 0:02:25]} 18. Rac1 {[%emt 0:01:41]} Bb4 {[%emt 0:00:21]} 19. Qb2 {[%emt 0:00:32]} Ne4 {[%emt 0:01:52]} 20. Nxe4 {[%emt 0:00:07]} dxe4 {[%emt 0:00:02]} 21. Ne5 {[%emt 0:00:15]} Nxe5 {[%emt 0:00:01]} 22. Bxe5 {[%emt 0:00:04]} f6 {[%emt 0:01:28]} 23. Bg3 {[%emt 0:00:09]} Kf7 {[%emt 0:00:27]} 24. Qe2 {[%emt 0:00:26]} g6 {[%emt 0:00:33]} 25. Qa2 {[%emt 0:01:06]} Ke7 {[%emt 0:00:26]} 26. Bf4 {[%emt 0:01:35]} g5 {[%emt 0:00:20]} 27. Bg3 {[%emt 0:00:04]} Bd6 {[%emt 0:01:54]} 28. Bxd6+ {[%emt 0:01:31]} Kxd6 {[%emt 0:00:01]} 29. d5 {[%emt 0:00:57]} exd5 {[%emt 0:00:11]} 30. Rcd1 {[%emt 0:00:00]} Rc5 {[%emt 0:00:28]} 31. f3 {[%emt 0:00:09]} exf3 {[%emt 0:01:15]} 32. Rxf3 {[%emt 0:00:02]} Qe7 {[%emt 0:00:02]} 33. e4 {[%emt 0:00:14]} Rd8 {[%emt 0:01:05]} 34. Qf2 {[%emt 0:00:52]} Qxe4 {[%emt 0:00:27]} 35. Rxf6+ {[%emt 0:00:03]} Kc7 {[%emt 0:00:01]} 36. Re1 {[%emt 0:00:27]} Qc2 {[%emt 0:00:49]} 37. Rf7+ Kc8 38. Qf6 {[%emt 0:00:40]} Rc7 {[%emt 0:00:05]} 39. Rxc7+ {[%emt 0:02:07]} Qxc7 {[%emt 0:00:01]} 40. Re6 {[%emt 0:00:03]} Qc1+ {[%emt 0:00:03]} 41. Kf2 {[%emt 0:00:08]} Qc5+ {[%emt 0:00:41]} 42. Kg3 {[%emt 0:00:21]} Qc7+ {[%emt 0:00:00]} 43. Kg4 {[%emt 0:00:14]} Kb7 {[%emt 0:00:01]} 44. Rc6 {[%emt 0:00:05]} Qf4+ {[%emt 0:00:04]} 45. Qxf4 {[%emt 0:00:02]} gxf4 {[%emt 0:00:01]} 46. Rxh6 {[%emt 0:00:35]} d4 {[%emt 0:00:00]} 47. Rh7+ {[%emt 0:00:09]} Kc8 {[%emt 0:00:08]} 48. Re7 {[%emt 0:00:05]} d3 {[%emt 0:00:19]} 49. Re1 {[%emt 0:00:01]} d2 50. Rd1 Rd4 {[%emt 0:00:04]} 51. h4 {[%emt 0:00:27]} Kd7 {[%emt 0:00:04]} 52. Kf5 {[%emt 0:00:05]} Ke7 {[%emt 0:00:11]} 53. h5 {[%emt 0:00:05]} Kf7 {[%emt 0:00:10]} 54. h6 {[%emt 0:00:03]} Kg8 {[%emt 0:00:32]} 55. Ke5 {[%emt 0:00:01]} Rxa4 {[%emt 0:00:15]} 56. Rxd2 {[%emt 0:00:01]} Rb4 {[%emt 0:00:00]} 57. Rd5 {[%emt 0:00:26]} Kh7 {[%emt 0:00:05]} 58. Rd7+ {[%emt 0:00:30]} Kxh6 {[%emt 0:00:23]} 59. Rd6+ {[%emt 0:00:01]} Kg5 {[%emt 0:00:01]} 60. Rxb6 {[%emt 0:00:01]} a4 {[%emt 0:00:04]} 61. Rb8 {[%emt 0:00:10]} a3 {[%emt 0:00:09]} 62. Rg8+ {[%emt 0:00:04]} Kh4 {[%emt 0:00:07]} 63. Ra8 {[%emt 0:00:04]} Kg3 {[%emt 0:00:26]} 64. b6 {[%emt 0:00:34]} Kxg2 {[%emt 0:00:18]} 65. b7 {[%emt 0:00:00]} f3 {[%emt 0:00:20]} 66. Rg8+ {[%emt 0:00:13]} Kh3 {[%emt 0:00:25]} 67. Rh8+ {[%emt 0:00:09]} Kg3 {[%emt 0:00:03]} 68. Rg8+ {[%emt 0:00:01]} Kh2 {[%emt 0:00:18]} 69. Rh8+ {[%emt 0:00:11]} Kg2 {[%emt 0:00:02]} 70. Rg8+ {[%emt 0:00:00]} Kh3 {[%emt 0:00:02]} 71. Rh8+ {[%emt 0:00:01]} Kg3 {[%emt 0:00:13]} 72. Rg8+ {[%emt 0:00:02]} Kh4 {[%emt 0:00:14]} 73. Rh8+ {[%emt 0:00:15]} Kg3 {[%emt 0:00:14]} 1/2-1/2

[Event "Champions Showdown Kings Rapid 2019-E"]
[Site "Saint Louis"]
[Date "2019.02.21"]
[Round "6.5"]
[White "Shankland, Samuel"]
[Black "Rapport, Richard"]
[Result "1/2-1/2"]
[ECO "B03"]
[WhiteElo "2731"]
[BlackElo "2735"]
[Annotator "ChessBase"]
[PlyCount "89"]
[EventDate "2019.02.09"]
[EventType "match (rapid)"]
[EventCountry "USA"]
[SourceTitle "playchess.com"]
[Source "ChessBase"]
[SourceQuality "1"]
[TimeControl "900+10"]

1. e4 {[%emt 0:00:00]} Nf6 {[%emt 0:00:14]} 2. e5 {[%emt 0:00:00]} Nd5 {[%emt 0:00:02]} 3. d4 {[%emt 0:00:00]} d6 {[%emt 0:00:01]} 4. exd6 {[%emt 0:00:12]} exd6 {[%emt 0:00:02]} 5. c4 {[%emt 0:00:09]} Nf6 {[%emt 0:00:05]} 6. Nf3 {[%emt 0:00:11]} Be7 {[%emt 0:00:02]} 7. Nc3 {[%emt 0:00:19]} O-O {[%emt 0:00:03]} 8. d5 {[%emt 0:00:21]} Bg4 {[%emt 0:00:40]} 9. Be2 {[%emt 0:00:02]} Nfd7 {[%emt 0:00:07]} 10. O-O {[%emt 0:00:08]} Na6 {[%emt 0:00:03]} 11. Be3 {[%emt 0:00:41]} Re8 {[%emt 0:00:08]} 12. Qd2 {[%emt 0:00:37]} Bf6 {[%emt 0:00:20]} 13. Rae1 {[%emt 0:00:41]} Nac5 {[%emt 0:00:14]} 14. b3 {[%emt 0:00:43]} a5 {[%emt 0:00:15]} 15. Nd4 {[%emt 0:00:41]} Bxe2 {[%emt 0:00:20]} 16. Rxe2 {[%emt 0:00:01]} Ne5 {[%emt 0:00:40]} 17. Ndb5 {[%emt 0:00:30]} Ned7 {[%emt 0:02:42]} 18. Rfe1 {[%emt 0:00:43]} Ne4 {[%emt 0:01:10]} 19. Nxe4 {[%emt 0:00:02]} Rxe4 {[%emt 0:00:01]} 20. f3 {[%emt 0:01:41]} Re8 {[%emt 0:00:17]} 21. Bf2 {[%emt 0:00:14]} Rxe2 {[%emt 0:00:08]} 22. Qxe2 {[%emt 0:00:02]} Ne5 {[%emt 0:00:37]} 23. f4 {[%emt 0:00:13]} Ng6 {[%emt 0:00:17]} 24. g3 {[%emt 0:00:01]} c6 {[%emt 0:00:35]} 25. dxc6 {[%emt 0:00:17]} bxc6 {[%emt 0:00:01]} 26. Nd4 {[%emt 0:00:02]} Qd7 {[%emt 0:00:14]} 27. Qd3 {[%emt 0:00:35]} Ne7 {[%emt 0:02:29]} 28. Nf3 {[%emt 0:00:35]} d5 {[%emt 0:00:09]} 29. Bc5 {[%emt 0:00:49]} h6 {[%emt 0:00:03]} 30. Kg2 {[%emt 0:00:21]} Qf5 {[%emt 0:00:30]} 31. Qxf5 {[%emt 0:00:45]} Nxf5 {[%emt 0:00:01]} 32. cxd5 {[%emt 0:00:16]} cxd5 {[%emt 0:00:01]} 33. Rd1 {[%emt 0:00:29]} d4 {[%emt 0:00:30]} 34. Rd2 {[%emt 0:00:29]} Rd8 {[%emt 0:00:24]} 35. g4 {[%emt 0:01:32]} Ne3+ {[%emt 0:00:03]} 36. Kh3 {[%emt 0:00:01]} Nd5 {[%emt 0:00:24]} 37. Bxd4 {[%emt 0:00:54]} Nxf4+ {[%emt 0:00:05]} 38. Kg3 {[%emt 0:00:01]} Ne2+ {[%emt 0:00:29]} 39. Rxe2 {[%emt 0:00:01]} Bxd4 {[%emt 0:00:00]} 40. Nxd4 {[%emt 0:00:45]} Rxd4 {[%emt 0:00:03]} 41. Re8+ {[%emt 0:00:06]} Kh7 {[%emt 0:00:01]} 42. Ra8 {[%emt 0:00:02]} Rd5 {[%emt 0:00:07]} 43. Kf4 {[%emt 0:00:08]} h5 {[%emt 0:00:10]} 44. h3 {[%emt 0:01:44]} f6 {[%emt 0:00:13]} 45. Ra7 {[%emt 0:00:29]} 1/2-1/2